bitfinex/quotes_BTCUSD_20251217
["timestamp","ask_amount","ask_price","bid_price","bid_amount"]
[1766006403542,0.01162007,86058.0,86047.0,0.00979394]
[1766006403764,0.24401863,86059.0,86047.0,0.00979394]
[1766006404489,0.001,86058.0,86047.0,0.00979394]
[1766006404693,0.01162007,86058.0,86047.0,0.00979394]
[1766006404889,0.24401935,86059.0,86046.0,0.00161287]
[1766006405096,0.01162007,86058.0,86046.0,0.00161287]
[1766006405597,0.01162007,86058.0,86024.0,0.01162466]
[1766006405598,0.24501935,86059.0,86022.0,0.73926479]
[1766006405599,0.01162182,86045.0,86022.0,0.73926479]
[1766006405800,0.01162277,86038.0,86025.0,0.013895]
[1766006406133,0.2440731,86040.0,86023.0,0.013895]
[1766006406335,0.2440731,86040.0,86022.0,0.00037535]
[1766006406336,0.0116225,86040.0,86022.0,0.00037535]
[1766006406539,0.01162196,86044.0,86023.0,0.03715594]
[1766006406700,0.01162182,86045.0,86023.0,0.03876881]
[1766006406883,0.0184,86044.0,86023.0,0.03876881]
[1766006407536,0.10232182,86045.0,86023.0,0.03876881]
[1766006407537,0.0907,86045.0,86024.0,0.6975]
[1766006407782,0.0184,86043.0,86025.0,0.54987]
[1766006407980,0.01162101,86051.0,86025.0,0.54987]
[1766006407981,0.01161953,86062.0,86039.0,0.54987]
[1766006408188,0.0184,86061.0,86041.0,0.54987]
[1766006408378,0.01161993,86059.0,86041.0,0.05653779]
[1766006408523,0.01898047,86058.0,86041.0,0.05653779]
[1766006408893,0.1096806,86057.0,86041.0,0.05653779]
[1766006409189,0.1096806,86057.0,86039.0,0.00161287]
[1766006409190,0.001,86045.0,86039.0,0.00161287]
[1766006409319,0.01162101,86051.0,86025.0,0.0184]
[1766006409524,0.0073604,86050.0,86025.0,0.02001287]
[1766006409863,0.01823506,86055.0,86025.0,0.56988287]
[1766006409864,0.0907,86054.0,86025.0,0.56988287]
[1766006410107,0.00735765,86053.0,86027.0,0.5706]
[1766006410311,0.00735765,86053.0,86031.0,0.5706]
[1766006410498,0.00735765,86053.0,86035.0,0.5706]
[1766006410713,0.00735765,86053.0,86035.0,0.72381]
[1766006410937,0.00735765,86053.0,86035.0,0.72542287]
[1766006411143,0.00735765,86052.0,86036.0,0.013895]
[1766006411271,0.01823506,86055.0,86039.0,0.14446]
[1766006411478,0.01823506,86055.0,86042.0,0.53473]
[1766006411678,0.01823506,86055.0,86043.0,0.5726427]
[1766006411933,0.01823506,86055.0,86043.0,0.71871557]
[1766006412135,0.01823506,86055.0,86043.0,0.68080287]
[1766006412846,0.01823506,86055.0,86044.0,0.67919]
[1766006413969,0.01823506,86055.0,86044.0,0.14446]
[1766006414716,0.01823506,86055.0,86043.0,0.00161287]
[1766006414717,0.00735795,86054.0,86043.0,0.00161287]
[1766006416032,0.01162074,86053.0,86043.0,0.00161287]
[1766006416273,0.00735795,86052.0,86043.0,0.00261287]
[1766006416453,0.01897883,86052.0,86043.0,0.00261287]
[1766006416713,0.01162088,86052.0,86043.0,0.00261287]
[1766006416916,0.24404073,86052.0,86043.0,0.00261287]
[1766006417044,0.01162101,86051.0,86043.0,0.00261287]
[1766006417453,0.24404157,86051.0,86043.0,0.00161287]
[1766006417688,0.01162115,86050.0,86043.0,0.00161287]
[1766006417884,0.24404157,86051.0,86043.0,0.00161287]
[1766006418247,0.001,86051.0,86043.0,0.00161287]
[1766006418578,0.00736512,86052.0,86043.0,0.00161287]
[1766006418991,0.10893506,86055.0,86043.0,0.00161287]
[1766006419195,0.00736534,86054.0,86043.0,0.53634287]
[1766006419397,0.00736534,86054.0,86045.0,0.67919]
[1766006419598,0.0907,86055.0,86046.0,0.53473]
[1766006419805,0.0184,86058.0,86046.0,0.53473]
[1766006420014,0.00736605,86057.0,86046.0,0.53473]
[1766006420351,0.00736605,86057.0,86043.0,0.00161287]
[1766006420559,0.09806605,86057.0,86043.0,0.00161287]
[1766006420739,0.00736605,86056.0,86043.0,0.00161287]
[1766006421398,0.0907,86055.0,86043.0,0.00161287]
[1766006421599,0.00736605,86054.0,86043.0,0.00161287]
[1766006421779,0.0907,86056.0,86043.0,0.00161287]
[1766006421935,0.00736639,86055.0,86043.0,0.00161287]
[1766006422154,0.00736639,86055.0,86043.0,0.06969316]
[1766006422336,0.00736639,86055.0,86043.0,0.00161287]
[1766006422927,0.0184,86058.0,86043.0,0.53634287]
[1766006423063,0.00736794,86057.0,86043.0,0.68080287]
[1766006424067,0.00736794,86057.0,86043.0,0.14607287]
[1766006424684,0.25139308,86057.0,86043.0,0.00161287]
[1766006424892,0.01162061,86054.0,86043.0,0.00161287]
[1766006425094,0.01898828,86056.0,86043.0,0.00161287]
[1766006425095,0.00736794,86053.0,86043.0,2.87e-06]
[1766006425306,0.00161,86053.0,86043.0,2.87e-06]
[1766006426558,0.00898239,86053.0,86043.0,2.87e-06]
[1766006426789,0.00737239,86052.0,86043.0,2.87e-06]
[1766006426935,0.00161,86053.0,86043.0,2.87e-06]
[1766006430052,0.00898223,86053.0,86043.0,2.87e-06]
[1766006430394,0.00161,86053.0,86043.0,2.87e-06]
[1766006432386,0.00161,86053.0,86046.0,0.53473]
[1766006432798,0.00161,86053.0,86045.0,0.14446]
[1766006432988,0.01161966,86061.0,86045.0,0.00161287]
[1766006433141,0.01161993,86059.0,86045.0,0.06969316]
[1766006433501,0.0116198,86060.0,86045.0,0.06969316]
[1766006433702,0.23240097,86059.0,86046.0,0.001]
[1766006433903,0.01161993,86059.0,86045.0,0.00161287]
[1766006434108,0.01162007,86058.0,86045.0,0.00161287]
[1766006434478,0.01161993,86059.0,86045.0,0.00161287]
[1766006434878,0.24401886,86059.0,86045.0,0.00161287]
[1766006435195,0.24401813,86060.0,86045.0,0.00161287]
[1766006435196,0.0116198,86060.0,86045.0,0.00161287]
[1766006435411,0.24401595,86060.0,86045.0,0.00161287]
[1766006435793,0.01161966,86061.0,86045.0,0.01622016]
[1766006435978,0.01161966,86061.0,86045.0,0.00161287]
[1766006436183,0.01923438,86060.0,86045.0,0.00161287]
[1766006436491,0.01161993,86059.0,86045.0,0.00161287]
[1766006436932,0.12055418,86060.0,86045.0,0.00161287]
[1766006437138,0.10893438,86060.0,86045.0,0.00161287]
[1766006437362,0.10893438,86060.0,86046.0,0.14446]
[1766006437513,0.10993438,86060.0,86048.0,0.53473]
[1766006437859,0.01823438,86060.0,86045.0,0.00161287]
[1766006438283,0.01923438,86060.0,86045.0,0.00161287]
[1766006439388,0.01823438,86060.0,86045.0,0.00161287]
[1766006439644,0.01923438,86060.0,86045.0,0.00161287]
[1766006439872,0.01823438,86060.0,86045.0,0.00161287]
[1766006440345,0.01923438,86060.0,86045.0,0.00161287]
[1766006440564,0.01823438,86060.0,86045.0,0.00161287]
[1766006440984,0.01923438,86060.0,86045.0,0.00161287]
[1766006441180,0.03085418,86060.0,86045.0,0.00161287]
[1766006441664,0.26325038,86060.0,86045.0,0.00161287]
[1766006441908,0.10232047,86055.0,86045.0,0.00161287]
[1766006442296,0.10232047,86055.0,86036.0,0.0184]
[1766006442483,0.10232047,86055.0,86037.0,0.013895]
[1766006442836,0.0907,86055.0,86037.0,0.013895]
[1766006443036,0.0907,86056.0,86030.0,0.14312]
[1766006443240,0.0907,86048.0,86031.0,0.0184]
[1766006443443,0.0907,86048.0,86031.0,0.01877535]
[1766006443685,0.33475016,86048.0,86031.0,0.01877535]
[1766006443859,0.10232142,86048.0,86031.0,0.01877535]
[1766006444262,0.0907,86048.0,86031.0,0.01877535]
[1766006444463,0.01162155,86047.0,86031.0,0.00037535]
[1766006444669,0.33474927,86049.0,86031.0,0.00037535]
[1766006445217,0.0066719,86048.0,86031.0,0.00037535]
[1766006445368,0.01990332,86048.0,86031.0,0.00037535]
[1766006445541,0.0066719,86047.0,86031.0,0.00037535]
[1766006445763,0.0082819,86047.0,86031.0,0.00037535]
[1766006447531,0.0907,86043.0,86031.0,0.00037535]
[1766006447731,0.06166818,86042.0,86022.0,0.013895]
[1766006447984,0.0066719,86041.0,86022.0,0.013895]
[1766006448186,0.0907,86039.0,86022.0,0.013895]
[1766006448448,0.0907,86039.0,86011.0,0.09766187]
[1766006448449,0.00161,86039.0,86014.0,0.0184]
[1766006448628,0.00161,86039.0,86007.0,0.52642]
[1766006448629,0.00161,86039.0,86007.0,0.66954]
[1766006448630,0.10232371,86031.0,86007.0,0.66954]
[1766006448833,0.01162398,86029.0,86007.0,0.14312]
[1766006449011,0.00666755,86028.0,86007.0,0.14312]
[1766006449215,0.01990167,86028.0,86007.0,0.14312]
[1766006449431,0.01990167,86028.0,86004.0,0.0186]
[1766006449432,0.0907,86019.0,86004.0,0.0002]
[1766006450200,0.01162547,86018.0,86004.0,0.0002]
[1766006450403,0.01563646,86017.0,86000.0,0.013895]
[1766006450771,0.01563646,86017.0,86004.0,0.001]
[1766006451703,0.01563646,86017.0,86000.0,0.540315]
[1766006451921,0.0184,86021.0,86001.0,0.52642]
[1766006452130,0.0184,86021.0,86007.0,0.66954]
[1766006452499,0.00161,86028.0,86010.0,0.63414372]
[1766006452662,0.00161,86028.0,86017.0,0.14312]
[1766006452866,0.00161,86028.0,86017.0,0.66954]
[1766006453282,0.00161,86028.0,86013.0,0.157015]
[1766006453488,0.00161,86028.0,86009.0,0.52642]
[1766006453668,0.00161,86028.0,86013.0,0.013895]
[1766006454984,0.00161,86028.0,86017.0,0.002]
[1766006455413,0.00161,86028.0,86013.0,0.01378379]
[1766006455667,0.00161,86028.0,86013.0,0.01478379]
[1766006456007,0.00161,86028.0,86013.0,0.01378379]
[1766006456207,0.00161,86028.0,86017.0,0.001]
[1766006456534,0.00161,86028.0,86013.0,0.01378379]
[1766006456900,0.00161,86028.0,86013.0,0.01478379]
[1766006458003,0.00161,86028.0,86013.0,0.01378379]
[1766006458499,0.00161,86028.0,86017.0,0.001]
[1766006458678,0.00161,86028.0,86013.0,0.01378379]
[1766006461512,0.00161,86028.0,86014.0,0.14312]
[1766006461713,0.00161,86028.0,86014.0,0.66954]
[1766006461889,0.00161,86028.0,86015.0,0.01304203]
[1766006462096,0.00161,86028.0,86014.0,0.66954]
[1766006463160,0.00161,86028.0,86014.0,0.14312]
[1766006463378,0.00161,86028.0,86015.0,0.52642]
[1766006463601,0.00161,86028.0,86016.0,0.66954]
[1766006463845,0.01823906,86031.0,86017.0,0.66954]
[1766006464023,0.0184,86039.0,86023.0,0.52642]
[1766006464258,0.0184,86039.0,86018.0,0.63414372]
[1766006464462,0.0184,86041.0,86023.0,0.14312]
[1766006464701,0.0184,86041.0,86019.0,0.00025675]
[1766006464702,0.0184,86041.0,86027.0,0.52642]
[1766006464895,0.0184,86041.0,86019.0,0.00025675]
[1766006465052,0.0184,86041.0,86028.0,0.52642]
[1766006465258,0.0184,86041.0,86029.0,0.66954]
[1766006465460,0.02001,86041.0,86029.0,0.14312]
[1766006465825,0.02001,86041.0,86026.0,0.540315]
[1766006466245,0.02001,86041.0,86027.0,0.66954]
[1766006468793,0.0907,86039.0,86019.0,0.00025675]
[1766006468993,0.0116229,86037.0,86019.0,0.00025675]
[1766006469193,0.01162304,86036.0,86019.0,0.00025675]
[1766006469690,0.0907,86037.0,86019.0,0.00025675]
[1766006470095,0.01162277,86038.0,86019.0,0.00025675]
[1766006470301,0.01162304,86036.0,86019.0,0.00025675]
[1766006470502,0.02001,86041.0,86001.0,0.06271397]
[1766006470503,0.0907,86029.0,86004.0,0.13372]
[1766006470730,0.0907,86029.0,86000.0,0.64803872]
[1766006470731,0.0907,86029.0,86005.0,0.65434]
[1766006470933,0.0907,86029.0,86006.0,0.51405]
[1766006471307,0.10232398,86029.0,86006.0,0.51405]
[1766006472008,0.0907,86029.0,86006.0,0.51405]
[1766006472955,0.0917,86029.0,86006.0,0.51405]
[1766006475001,0.10332398,86029.0,86006.0,0.51405]
[1766006475133,0.0917,86029.0,86006.0,0.51405]
[1766006475642,0.0907,86029.0,86006.0,0.51405]
[1766006476120,0.0917,86029.0,86006.0,0.51405]
[1766006476453,0.0917,86029.0,86016.0,0.51405]
[1766006476454,0.0184,86028.0,86016.0,0.51405]
[1766006476622,0.001,86029.0,86018.0,0.51405]
[1766006477868,0.0184,86031.0,86018.0,0.51405]
[1766006477992,0.001,86029.0,86018.0,0.51405]
[1766006478413,0.0184,86031.0,86018.0,0.51405]
[1766006478632,0.001,86029.0,86018.0,0.51405]
[1766006478815,0.0184,86031.0,86018.0,0.51405]
[1766006479219,0.0184,86031.0,86018.0,0.51505]
[1766006480761,0.0184,86031.0,86018.0,0.51405]
[1766006481397,0.00666694,86030.0,86018.0,0.51405]
[1766006482051,0.01162398,86029.0,86006.0,0.51405]
[1766006482209,0.00666647,86028.0,86011.0,0.14029]
[1766006482384,0.72484372,86030.0,86014.0,0.14029]
[1766006482588,0.72484372,86030.0,86020.0,0.14029]
[1766006482589,0.00666645,86029.0,86020.0,0.14029]
[1766006482822,0.0907,86030.0,86018.0,0.001]
[1766006483169,0.0184,86035.0,86018.0,0.001]
[1766006483425,0.006665,86034.0,86018.0,0.001]
[1766006483676,0.01828831,86034.0,86018.0,0.001]
[1766006483913,0.05865354,86035.0,86015.0,0.51405]
[1766006483914,0.006665,86033.0,86016.0,0.51405]
[1766006484126,0.006665,86032.0,86016.0,0.51405]
[1766006484372,0.006665,86031.0,86016.0,0.51405]
[1766006484583,0.006665,86030.0,86016.0,0.51405]
[1766006484808,0.01262331,86034.0,86016.0,0.51405]
[1766006485026,0.00666511,86033.0,86016.0,0.51405]
[1766006485248,0.00666511,86032.0,86016.0,0.51405]
[1766006485470,0.00666511,86031.0,86016.0,0.51405]
[1766006485692,0.00666511,86030.0,86016.0,0.51405]
[1766006486013,0.01162331,86034.0,86016.0,0.51405]
[1766006486213,0.00666536,86033.0,86016.0,0.51405]
[1766006486681,0.00666536,86032.0,86016.0,0.51405]
[1766006486899,0.00666536,86031.0,86016.0,0.51405]
[1766006487153,0.00666536,86030.0,86016.0,0.51405]
[1766006487356,0.06444604,86031.0,86017.0,0.14029]
[1766006487542,0.0907,86034.0,86017.0,0.65434]
[1766006487842,0.00666466,86033.0,86017.0,0.65434]
[1766006488202,0.00666466,86032.0,86017.0,0.65434]
[1766006488432,0.00666466,86031.0,86017.0,0.65434]
[1766006488607,0.00666466,86030.0,86017.0,0.65434]
[1766006488803,0.0184,86035.0,86017.0,0.65434]
[1766006489016,0.001,86033.0,86017.0,0.65434]
[1766006490073,0.04013758,86032.0,86017.0,0.65434]
[1766006490276,0.00666489,86031.0,86017.0,0.14029]
[1766006490472,0.00666489,86031.0,86013.0,0.013895]
[1766006490707,0.00666489,86030.0,86013.0,0.154185]
[1766006490892,0.13335006,86029.0,86013.0,0.14029]
[1766006491131,0.12668517,86029.0,86015.0,0.14029]
[1766006491466,0.0907,86029.0,86015.0,0.14029]
[1766006491672,0.0907,86029.0,86015.0,0.65434]
[1766006491875,0.1091,86035.0,86016.0,0.51405]
[1766006492080,0.24409743,86032.0,86015.0,0.14029]
[1766006492306,0.0907,86029.0,86008.0,0.14029]
[1766006492669,0.0907,86029.0,86000.0,0.64784161]
[1766006492670,0.0907,86029.0,86001.0,0.04176479]
[1766006492671,0.0907,86025.0,86001.0,0.04176479]
[1766006492803,0.0907,86025.0,86003.0,0.65434]
[1766006493173,0.10232452,86025.0,86004.0,0.65434]
[1766006493378,0.0907,86025.0,86004.0,0.65434]
[1766006493610,0.0907,86025.0,86005.0,0.51405]
[1766006493783,0.01162412,86028.0,86004.0,0.0192692]
[1766006493784,0.0907,86027.0,86006.0,0.65434]
[1766006493984,0.00666492,86026.0,86007.0,0.65434]
[1766006495199,0.10232412,86028.0,86007.0,0.65434]
[1766006495418,0.00666439,86027.0,86007.0,0.65434]
[1766006495584,0.00666439,86027.0,86004.0,0.0192692]
[1766006495797,0.00666439,86027.0,86006.0,0.51405]
[1766006496202,0.00666439,86027.0,86007.0,0.14029]
[1766006496405,0.00666439,86026.0,86008.0,0.51405]
[1766006496753,0.01162452,86025.0,86008.0,0.51405]
[1766006496904,0.0066629,86024.0,86008.0,0.51405]
[1766006497106,0.0907,86026.0,86008.0,0.51405]
[1766006497326,0.00666317,86025.0,86008.0,0.51405]
[1766006497890,0.0907,86026.0,86001.0,0.0184]
[1766006497891,0.0907,86026.0,86009.0,0.65434]
[1766006498305,0.00666609,86025.0,86009.0,0.65434]
[1766006498550,0.10232398,86029.0,86009.0,0.65434]
[1766006498753,0.01829022,86028.0,86009.0,0.65434]
[1766006498969,0.0066661,86027.0,86009.0,0.65434]
[1766006499181,0.0066661,86026.0,86009.0,0.65434]
[1766006499387,0.0066661,86025.0,86009.0,0.65434]
[1766006499599,0.0066661,86025.0,86002.0,0.04176479]
[1766006499600,0.0973661,86024.0,86002.0,0.04176479]
[1766006499804,0.0973661,86024.0,86002.0,0.51405]
[1766006499805,0.0066661,86023.0,86002.0,0.51405]
[1766006500010,0.10232506,86021.0,86001.0,0.15869]
[1766006500220,0.0066661,86020.0,86001.0,0.15869]
[1766006500430,0.0066661,86020.0,86001.0,0.172585]
[1766006500431,0.73131271,86020.0,86001.0,0.172585]
[1766006500636,0.0066661,86019.0,86001.0,0.172585]
[1766006501073,0.0066661,86019.0,86011.0,0.00025678]
[1766006501482,0.0066661,86019.0,86001.0,0.03215178]
[1766006501686,0.0973661,86019.0,86001.0,0.01825678]
[1766006501890,0.0907,86019.0,86001.0,0.01825678]
[1766006502093,0.0907,86019.0,85999.0,0.013895]
[1766006502339,0.10232533,86019.0,85999.0,0.013895]
[1766006502536,0.10232547,86018.0,85999.0,0.013895]
[1766006502744,0.0907,86018.0,85999.0,0.013895]
[1766006503166,0.0907,86018.0,85999.0,0.492865]
[1766006503374,0.0907,86018.0,85999.0,0.631985]
[1766006504444,0.0907,86019.0,85999.0,0.153015]
[1766006504649,0.0907,86019.0,85993.0,0.0184]
[1766006504650,0.01162628,86012.0,85995.0,0.04176479]
[1766006504873,0.08825513,86018.0,85989.0,0.03535792]
[1766006504874,0.64557316,86010.0,85989.0,0.03535792]
[1766006505082,0.24419128,85999.0,85989.0,0.03535792]
[1766006505285,0.24419685,85997.0,85989.0,0.0004]
[1766006505491,0.24419758,85996.0,85980.0,0.013695]
[1766006505691,0.01258983,85997.0,85980.0,0.013695]
[1766006505893,0.01258983,85997.0,85980.0,0.01348905]
[1766006506324,0.63394661,85990.0,85980.0,0.00011248]
[1766006506725,0.63394661,85990.0,85980.0,2.48e-06]
[1766006506940,0.71057627,85990.0,85969.0,0.01820248]
[1766006507251,0.71057627,85990.0,85969.0,0.00011259]
[1766006507252,0.0184,85989.0,85969.0,0.00011259]
[1766006507809,0.23259329,85987.0,85969.0,0.00011259]
[1766006507986,0.0116302,85983.0,85969.0,0.00011259]
[1766006508192,0.63394661,85980.0,85969.0,0.00011259]
[1766006508389,0.0116302,85983.0,85969.0,0.00011259]
[1766006508591,0.01162993,85985.0,85969.0,0.00011259]
[1766006508825,0.00161,85983.0,85969.0,0.00011259]
[1766006509296,0.01162966,85987.0,85967.0,0.0002]
[1766006509297,0.00161,85970.0,85967.0,0.00011259]
[1766006509502,0.0184,85982.0,85968.0,0.13912]
[1766006509686,0.0184,85982.0,85967.0,0.00011259]
[1766006510249,0.0184,85982.0,85961.0,0.13903259]
[1766006510492,0.0184,85982.0,85961.0,0.13914533]
[1766006510824,0.0194,85982.0,85961.0,0.1546532]
[1766006511029,0.03031,85982.0,85962.0,0.47897]
[1766006511235,0.0194,85982.0,85962.0,0.47897]
[1766006511999,0.0184,85982.0,85962.0,0.47897]
[1766006512343,0.0184,85982.0,85962.0,0.48058287]
[1766006512540,0.0184,85982.0,85962.0,0.48026456]
[1766006512883,0.0184,85982.0,85962.0,0.00161287]
[1766006513282,0.0184,85982.0,85956.0,0.13932]
[1766006513283,0.0184,85982.0,85956.0,2.74e-06]
[1766006513284,0.01163169,85972.0,85956.0,2.74e-06]
[1766006513531,0.03003182,85971.0,85956.0,2.74e-06]
[1766006513743,0.12073182,85971.0,85955.0,2.74e-06]
[1766006513944,0.24427447,85969.0,85955.0,2.74e-06]
[1766006514146,0.01163237,85967.0,85955.0,2.74e-06]
[1766006514349,0.01163237,85967.0,85953.0,0.0002]
[1766006514350,0.10233277,85964.0,85953.0,0.0002]
[1766006514551,0.0907,85964.0,85953.0,0.0002]
[1766006514726,0.10233277,85964.0,85953.0,0.0002]
[1766006514926,0.0907,85964.0,85953.0,0.0002]
[1766006515133,0.02711758,85963.0,85953.0,0.0002]
[1766006515674,0.02711758,85963.0,85943.0,0.013895]
[1766006515675,0.10233277,85964.0,85943.0,0.013895]
[1766006516032,0.01163291,85963.0,85940.0,0.0184]
[1766006516232,0.01163291,85963.0,85942.0,0.013895]
[1766006516426,0.10233277,85964.0,85942.0,0.013895]
[1766006516627,0.10233277,85964.0,85942.0,0.01289774]
[1766006516932,0.10233277,85964.0,85939.0,0.47897]
[1766006516934,0.01163291,85963.0,85939.0,0.47897]
[1766006517073,0.24429163,85963.0,85940.0,0.013895]
[1766006517312,0.24429163,85963.0,85940.0,0.492865]
[1766006517532,0.01163291,85963.0,85940.0,0.492865]
[1766006518142,0.01163345,85959.0,85940.0,0.492865]
[1766006518342,0.0184,85958.0,85940.0,0.013895]
[1766006518553,0.0184,85958.0,85930.0,0.14073287]
[1766006518554,0.0116344,85952.0,85930.0,0.14073287]
[1766006518767,0.01163426,85953.0,85930.0,0.14073287]
[1766006518976,0.01163467,85950.0,85930.0,0.14073287]
[1766006519180,0.01163467,85950.0,85930.0,0.00161287]
[1766006519390,0.01163453,85951.0,85930.0,0.00161287]
[1766006519391,0.0279226,85949.0,85930.0,0.00161287]
[1766006519592,0.24432183,85953.0,85930.0,0.00161287]
[1766006519831,0.24432183,85953.0,85930.0,0.0006731]
[1766006520031,0.24532183,85953.0,85930.0,0.0006731]
[1766006520238,0.01163426,85953.0,85930.0,0.0006731]
[1766006520395,0.02989096,85952.0,85940.0,0.0002571]
[1766006520596,0.07433301,85951.0,85940.0,0.0002571]
[1766006520799,0.0907,85951.0,85930.0,0.0005302]
[1766006521239,0.0907,85951.0,85930.0,0.4795002]
[1766006521457,0.0907,85951.0,85934.0,0.47897]
[1766006521662,0.001,85949.0,85938.0,0.47897]
[1766006521866,0.01825656,85952.0,85938.0,0.47897]
[1766006521867,0.01825656,85952.0,85942.0,0.13912]
[1766006522034,0.00011249,85972.0,85954.0,0.47897]
[1766006522251,0.00011249,85972.0,85960.0,0.13912]
[1766006522541,0.00011249,85972.0,85961.0,0.13912]
[1766006522698,0.00011249,85972.0,85963.0,0.013895]
[1766006522871,0.00011249,85972.0,85963.0,0.492865]
[1766006523222,0.00011249,85972.0,85963.0,0.4933952]
[1766006523451,0.00119516,85972.0,85963.0,0.0005302]
[1766006524266,0.03887661,85972.0,85963.0,0.0005302]
[1766006524497,0.00119516,85972.0,85954.0,0.0184]
[1766006524864,0.00119516,85972.0,85950.0,0.47897]
[1766006524865,0.0116325,85966.0,85950.0,0.47897]
[1766006525089,0.00108267,85966.0,85953.0,0.013895]
[1766006525410,0.00108267,85966.0,85963.0,0.001]
[1766006525822,0.00108267,85966.0,85953.0,0.013895]
[1766006526209,0.00108267,85966.0,85954.0,0.47897]
[1766006526325,0.00108267,85966.0,85953.0,0.153015]
[1766006526526,0.00108267,85966.0,85945.0,0.13912]
[1766006526859,0.01163264,85965.0,85943.0,0.0184]
[1766006527062,0.01163264,85965.0,85940.0,0.47897]
[1766006527063,0.01163277,85964.0,85940.0,0.47897]
[1766006527396,0.01163291,85963.0,85940.0,0.61809]
[1766006527585,0.24428835,85964.0,85963.0,0.002]
[1766006527791,0.03958763,85966.0,85941.0,0.47697]
[1766006527991,0.03958763,85966.0,85942.0,0.13912]
[1766006527992,0.06234703,85965.0,85942.0,0.13912]
[1766006528208,0.01163277,85964.0,85942.0,0.1396502]
[1766006528427,0.01163345,85959.0,85942.0,0.0005302]
[1766006528640,0.01163345,85959.0,85935.0,0.0184]
[1766006528641,0.10233372,85957.0,85935.0,0.0184]
[1766006528836,0.10233372,85957.0,85936.0,0.013895]
[1766006529058,0.03850631,85956.0,85936.0,0.013895]
[1766006529258,0.02687246,85956.0,85936.0,0.013895]
[1766006530728,0.0907,85955.0,85936.0,0.013895]
[1766006530927,0.10233399,85955.0,85936.0,0.013895]
[1766006531330,0.0907,85955.0,85936.0,0.013895]
[1766006531551,0.06234703,85954.0,85936.0,0.013895]
[1766006532035,0.06287723,85954.0,85936.0,0.013895]
[1766006532501,0.00659997,85953.0,85936.0,0.013895]
[1766006532724,0.00713017,85953.0,85941.0,0.49793]
[1766006532927,0.00713017,85953.0,85940.0,0.63463404]
[1766006532928,0.01163128,85975.0,85956.0,0.12983]
[1766006533122,0.01163128,85975.0,85958.0,0.62776]
[1766006533123,0.00064269,85972.0,85958.0,0.62776]
[1766006533326,0.02914269,85972.0,85958.0,0.62776]
[1766006533446,0.00064269,85972.0,85958.0,0.12983]
[1766006533649,0.01227438,85972.0,85956.0,0.00053002]
[1766006534096,0.00046998,85954.0,85951.0,0.12983]
[1766006534401,0.00046998,85954.0,85953.0,0.62776]
[1766006534608,0.10297438,85972.0,85953.0,0.62776]
[1766006534781,0.09134269,85972.0,85953.0,0.62776]
[1766006534962,0.10297438,85972.0,85953.0,0.62776]
[1766006535333,0.0907,85970.0,85950.0,0.49793]
[1766006535471,0.0912302,85970.0,85958.0,0.001]
[1766006535671,0.0912302,85970.0,85950.0,0.62776]
[1766006536306,0.0005302,85970.0,85950.0,0.62776]
[1766006536714,0.0005302,85970.0,85950.0,0.12983]
[1766006536919,0.0005302,85970.0,85945.0,0.0184]
[1766006537125,0.01163277,85964.0,85945.0,0.0184]
[1766006537461,0.10233304,85962.0,85945.0,0.0184]
[1766006537670,0.01163345,85959.0,85939.0,0.49793]
[1766006537851,0.00108266,85959.0,85939.0,0.49793]
[1766006538250,0.00108266,85959.0,85939.0,0.62776]
[1766006538714,0.06237232,85958.0,85939.0,0.62776]
[1766006538913,0.07508856,85958.0,85939.0,0.62776]
[1766006539062,0.06345498,85958.0,85939.0,0.62776]
[1766006539653,0.07508856,85958.0,85939.0,0.62776]
[1766006540220,0.01163372,85957.0,85939.0,0.12983]
[1766006540419,0.02684717,85956.0,85936.0,0.013895]
[1766006540631,0.02792983,85956.0,85936.0,0.013895]
[1766006540855,0.02792983,85956.0,85939.0,0.12983]
[1766006540995,0.00108266,85956.0,85939.0,0.12983]
[1766006541200,0.00108266,85956.0,85936.0,0.013895]
[1766006541499,0.00108266,85956.0,85941.0,0.49793]
[1766006541670,0.00108266,85956.0,85942.0,0.62776]
[1766006541875,0.00208266,85956.0,85943.0,0.49793]
[1766006542078,0.00208266,85956.0,85940.0,0.63463404]
[1766006542079,0.00108266,85956.0,85948.0,0.62776]
[1766006542543,0.00208266,85956.0,85948.0,0.62776]
[1766006542709,0.00208266,85956.0,85949.0,0.49793]
[1766006542855,0.00208266,85956.0,85949.0,0.62776]
[1766006543601,0.00108266,85956.0,85949.0,0.62776]
[1766006543809,0.00208266,85956.0,85939.0,0.49793]
[1766006544027,0.00208266,85956.0,85942.0,0.12983]
[1766006544215,0.00108266,85956.0,85945.0,0.62776]
[1766006544410,0.00108266,85956.0,85947.0,0.12983]
[1766006544618,0.00108266,85956.0,85948.0,0.49793]
[1766006544817,0.00599346,85955.0,85948.0,0.49793]
[1766006545021,0.00599346,85955.0,85931.0,0.62776]
[1766006545022,0.00652366,85955.0,85931.0,0.62776]
[1766006545230,0.00652366,85955.0,85939.0,0.013895]
[1766006545231,0.00599346,85954.0,85939.0,0.013895]
[1766006545549,0.03524162,85954.0,85939.0,0.511825]
[1766006545707,0.00599346,85953.0,85939.0,0.511825]
[1766006545913,0.00707612,85953.0,85939.0,0.511825]
[1766006546133,0.00707612,85953.0,85941.0,0.12983]
[1766006546348,0.00599346,85952.0,85942.0,0.49793]
[1766006546586,0.00599346,85951.0,85942.0,0.49793]
[1766006546774,0.00599346,85950.0,85942.0,0.49793]
[1766006547042,0.00599346,85949.0,85942.0,0.49793]
[1766006547249,0.00599346,85948.0,85942.0,0.49793]
[1766006547639,0.00108266,85953.0,85942.0,0.49793]
[1766006547781,0.001,85950.0,85942.0,0.49793]
[1766006548337,0.01163304,85962.0,85942.0,0.49901267]
[1766006548547,0.0005302,85959.0,85942.0,0.50001267]
[1766006549705,0.0005302,85959.0,85942.0,0.49901267]
[1766006549905,0.0005302,85959.0,85942.0,0.00208267]
[1766006550111,0.0907,85958.0,85942.0,0.00208267]
[1766006550308,0.0907,85958.0,85942.0,0.00108267]
[1766006551306,0.0025302,85959.0,85942.0,0.00108267]
[1766006551510,0.0005302,85959.0,85942.0,0.00108267]
[1766006552715,0.001,85958.0,85942.0,0.00108267]
[1766006552941,0.0005302,85959.0,85942.0,0.00108267]
[1766006553995,0.002,85958.0,85942.0,0.00108267]
[1766006554187,0.0005302,85959.0,85942.0,0.00108267]
[1766006554535,0.0015302,85959.0,85942.0,0.00108267]